[Event "Titled Tuesday Blitz October 25 Late 2022"]
[White "Szente Varga, Fruzsina"]
[Black "Barash, Anton"]
[WhiteFideId "712264"]
[BlackFideId "30935229"]
[WhiteElo "1994"]
[BlackElo "2279"]
[Result "0-1"]
[Round "11"]
[TimeControl "180+1"]
[Date "2022.10.26"]
[WhiteClock "0:00:31"]
[BlackClock "0:01:21"]

1. e4 {[%clk 0:03:00]}  e6 {[%clk 0:02:59]} 2. d4 {[%clk 0:03:00]}  d5 {[%clk 0:03:00]} 3. Nd2 {[%clk 0:02:56]}  Nc6 {[%clk 0:03:00]} 4. c3 {[%clk 0:02:54]}  e5 {[%clk 0:02:59]} 5. dxe5 {[%clk 0:02:31]}  dxe4 {[%clk 0:02:59]} 6. Nxe4 {[%clk 0:02:31]}  Qxd1+ {[%clk 0:02:57]} 7. Kxd1 {[%clk 0:02:32]}  Nxe5 {[%clk 0:02:56]} 8. f4 {[%clk 0:02:22]}  Bg4+ {[%clk 0:02:52]} 9. Be2 {[%clk 0:02:20]}  O-O-O+ {[%clk 0:02:50]} 10. Kc2 {[%clk 0:02:19]}  Bf5 {[%clk 0:02:47]} 11. Bf3 {[%clk 0:02:03]}  Nxf3 {[%clk 0:02:37]} 12. gxf3 {[%clk 0:02:03]}  Nf6 {[%clk 0:02:37]} 13. Ne2 {[%clk 0:01:36]}  Nxe4 {[%clk 0:02:35]} 14. Nd4 {[%clk 0:01:36]}  Rxd4 {[%clk 0:02:11]} 15. cxd4 {[%clk 0:01:37]}  Nf2+ {[%clk 0:02:09]} 16. Kd2 {[%clk 0:01:35]}  Nxh1 {[%clk 0:02:09]} 17. Ke2 {[%clk 0:01:36]}  Bb4 {[%clk 0:02:02]} 18. Be3 {[%clk 0:01:36]}  Re8 {[%clk 0:01:59]} 19. Rxh1 {[%clk 0:01:34]}  Ba5 {[%clk 0:01:55]} 20. Rg1 {[%clk 0:01:29]}  g6 {[%clk 0:01:55]} 21. Rc1 {[%clk 0:01:24]}  Bb6 {[%clk 0:01:51]} 22. Kd2 {[%clk 0:01:19]}  Rd8 {[%clk 0:01:51]} 23. Kc3 {[%clk 0:01:11]}  h5 {[%clk 0:01:50]} 24. b4 {[%clk 0:01:10]}  Rd5 {[%clk 0:01:49]} 25. a4 {[%clk 0:01:10]}  a5 {[%clk 0:01:49]} 26. Kc4 {[%clk 0:01:01]}  Be6 {[%clk 0:01:45]} 27. Kd3 {[%clk 0:00:55]}  axb4 {[%clk 0:01:43]} 28. Rb1 {[%clk 0:00:53]}  Bxd4 {[%clk 0:01:34]} 29. Bxd4 {[%clk 0:00:50]}  c5 {[%clk 0:01:29]} 30. Rc1 {[%clk 0:00:44]}  Rxd4+ {[%clk 0:01:28]} 31. Ke3 {[%clk 0:00:41]}  b6 {[%clk 0:01:28]} 32. a5 {[%clk 0:00:35]}  Kb7 {[%clk 0:01:28]} 33. axb6 {[%clk 0:00:35]}  Kxb6 {[%clk 0:01:28]} 34. Ra1 {[%clk 0:00:33]}  b3 {[%clk 0:01:28]} 35. Rb1 {[%clk 0:00:33]}  Rb4 {[%clk 0:01:27]} 36. Rb2 {[%clk 0:00:32]}  Kb5 {[%clk 0:01:26]} 37. Kd3 {[%clk 0:00:32]}  Ka4 {[%clk 0:01:23]} 38. Kc3 {[%clk 0:00:32]}  Ka3 {[%clk 0:01:22]} 39. Rb1 {[%clk 0:00:31]}  b2 {[%clk 0:01:21]} 0-1


[Site "https://www.chess.com"]

[Event "Titled Tuesday Blitz October 25 Late 2022"]
[White "Vargas, Mauricio"]
[Black "Arbunic Castro, Giovanna"]
[WhiteFideId "4404572"]
[BlackFideId "3400549"]
[WhiteElo "2025"]
[BlackElo "1876"]
[Result "1-0"]
[Round "11"]
[TimeControl "180+1"]
[Date "2022.10.26"]
[WhiteClock "0:00:54"]
[BlackClock "0:00:09"]

1. e4 {[%clk 0:03:00]}  g6 {[%clk 0:02:57]} 2. Nc3 {[%clk 0:03:00]}  Bg7 {[%clk 0:02:56]} 3. f4 {[%clk 0:03:00]}  c5 {[%clk 0:02:55]} 4. Nf3 {[%clk 0:03:00]}  Nc6 {[%clk 0:02:54]} 5. Bb5 {[%clk 0:02:58]}  e6 {[%clk 0:02:53]} 6. Bxc6 {[%clk 0:02:57]}  bxc6 {[%clk 0:02:50]} 7. O-O {[%clk 0:02:58]}  Ne7 {[%clk 0:02:49]} 8. d3 {[%clk 0:02:58]}  O-O {[%clk 0:02:47]} 9. Qe1 {[%clk 0:02:55]}  f5 {[%clk 0:02:45]} 10. e5 {[%clk 0:02:52]}  Rb8 {[%clk 0:02:44]} 11. Nb1 {[%clk 0:02:40]}  d6 {[%clk 0:02:31]} 12. c4 {[%clk 0:02:30]}  dxe5 {[%clk 0:02:27]} 13. Nxe5 {[%clk 0:02:28]}  Qd4+ {[%clk 0:02:09]} 14. Be3 {[%clk 0:02:19]}  Qxb2 {[%clk 0:02:06]} 15. Nd2 {[%clk 0:02:14]}  Bxe5 {[%clk 0:01:58]} 16. fxe5 {[%clk 0:02:14]}  Qxe5 {[%clk 0:01:57]} 17. Qf2 {[%clk 0:02:11]}  f4 {[%clk 0:01:29]} 18. Bxc5 {[%clk 0:02:05]}  Rf7 {[%clk 0:01:05]} 19. Ne4 {[%clk 0:01:45]}  Rb2 {[%clk 0:01:00]} 20. Qh4 {[%clk 0:01:29]}  Nf5 {[%clk 0:00:24]} 21. Qd8+ {[%clk 0:01:20]}  Kg7 {[%clk 0:00:21]} 22. Qxc8 {[%clk 0:01:14]}  Ne3 {[%clk 0:00:18]} 23. Bxe3 {[%clk 0:01:02]}  fxe3 {[%clk 0:00:17]} 24. Rxf7+ {[%clk 0:01:02]}  Kxf7 {[%clk 0:00:16]} 25. Rf1+ {[%clk 0:01:01]}  Rf2 {[%clk 0:00:15]} 26. Nxf2 {[%clk 0:00:58]}  exf2+ {[%clk 0:00:14]} 27. Rxf2+ {[%clk 0:00:57]}  Ke7 {[%clk 0:00:09]} 28. Qb7+ {[%clk 0:00:54]} 1-0


[Site "https://www.chess.com"]

[Event "Titled Tuesday Blitz October 25 Late 2022"]
[White "Vlassov, Nikolai"]
[Black "Buscar, Michael"]
[WhiteFideId "4103360"]
[BlackFideId "2603616"]
[WhiteElo "2324"]
[BlackElo "2010"]
[Result "1-0"]
[Round "11"]
[TimeControl "180+1"]
[Date "2022.10.26"]
[WhiteClock "0:00:05"]
[BlackClock "0:00:22"]

1. e4 {[%clk 0:03:00]}  c5 {[%clk 0:02:59]} 2. c3 {[%clk 0:03:00]}  Nf6 {[%clk 0:02:59]} 3. e5 {[%clk 0:03:01]}  Nd5 {[%clk 0:02:59]} 4. d4 {[%clk 0:03:02]}  cxd4 {[%clk 0:02:59]} 5. cxd4 {[%clk 0:03:03]}  Nc6 {[%clk 0:02:58]} 6. Nc3 {[%clk 0:03:02]}  Nxc3 {[%clk 0:02:56]} 7. bxc3 {[%clk 0:03:02]}  d5 {[%clk 0:02:57]} 8. Bd3 {[%clk 0:03:01]}  e6 {[%clk 0:02:50]} 9. f4 {[%clk 0:02:58]}  Be7 {[%clk 0:02:48]} 10. Nf3 {[%clk 0:02:57]}  Na5 {[%clk 0:02:45]} 11. O-O {[%clk 0:02:52]}  Nc4 {[%clk 0:02:43]} 12. Qe2 {[%clk 0:02:49]}  Qc7 {[%clk 0:02:37]} 13. Bd2 {[%clk 0:02:43]}  Bd7 {[%clk 0:02:34]} 14. Rf2 {[%clk 0:02:38]}  h6 {[%clk 0:02:23]} 15. g4 {[%clk 0:02:33]}  O-O-O {[%clk 0:02:15]} 16. f5 {[%clk 0:02:31]}  Kb8 {[%clk 0:02:14]} 17. Bf4 {[%clk 0:02:30]}  Ka8 {[%clk 0:02:05]} 18. Nd2 {[%clk 0:02:14]}  Nxd2 {[%clk 0:02:01]} 19. Bxd2 {[%clk 0:02:08]}  Rc8 {[%clk 0:02:00]} 20. Rb1 {[%clk 0:02:02]}  Bg5 {[%clk 0:01:39]} 21. Rb3 {[%clk 0:01:35]}  Bxd2 {[%clk 0:01:33]} 22. Qxd2 {[%clk 0:01:34]}  h5 {[%clk 0:01:34]} 23. h3 {[%clk 0:01:33]}  hxg4 {[%clk 0:01:34]} 24. hxg4 {[%clk 0:01:34]}  Rh3 {[%clk 0:01:33]} 25. Rh2 {[%clk 0:01:23]}  Rch8 {[%clk 0:01:32]} 26. Rxh3 {[%clk 0:01:21]}  Rxh3 {[%clk 0:01:33]} 27. Kg2 {[%clk 0:01:22]}  Rh8 {[%clk 0:01:22]} 28. Qg5 {[%clk 0:01:09]}  Qa5 {[%clk 0:01:10]} 29. Bb1 {[%clk 0:00:59]}  Qa6 {[%clk 0:01:05]} 30. Rb2 {[%clk 0:00:49]}  exf5 {[%clk 0:00:45]} 31. Qxg7 {[%clk 0:00:40]}  Rc8 {[%clk 0:00:38]} 32. Qxf7 {[%clk 0:00:32]}  Be6 {[%clk 0:00:36]} 33. Qxb7+ {[%clk 0:00:18]}  Qxb7 {[%clk 0:00:35]} 34. Rxb7 {[%clk 0:00:19]}  Kxb7 {[%clk 0:00:34]} 35. gxf5 {[%clk 0:00:19]}  Bg8 {[%clk 0:00:32]} 36. f6 {[%clk 0:00:15]}  Rxc3 {[%clk 0:00:29]} 37. Bf5 {[%clk 0:00:15]}  Rc6 {[%clk 0:00:29]} 38. Kf3 {[%clk 0:00:14]}  Kc7 {[%clk 0:00:29]} 39. Kf4 {[%clk 0:00:14]}  Be6 {[%clk 0:00:29]} 40. Bxe6 {[%clk 0:00:10]}  Rxe6 {[%clk 0:00:29]} 41. Kf5 {[%clk 0:00:11]}  Re8 {[%clk 0:00:23]} 42. f7 {[%clk 0:00:11]}  Rf8 {[%clk 0:00:22]} 43. Kf6 {[%clk 0:00:08]}  Kd7 {[%clk 0:00:23]} 44. e6+ {[%clk 0:00:08]}  Kd6 {[%clk 0:00:23]} 45. e7 {[%clk 0:00:08]}  Rb8 {[%clk 0:00:21]} 46. e8=Q {[%clk 0:00:07]}  Rb6 {[%clk 0:00:20]} 47. f8=Q+ {[%clk 0:00:05]}  Kc7+ {[%clk 0:00:21]} 48. Ke5 {[%clk 0:00:06]}  Kb7 {[%clk 0:00:21]} 49. Qd7+ {[%clk 0:00:05]}  Ka6 {[%clk 0:00:22]} 50. Qa3# {[%clk 0:00:05]} 1-0


[Site "https://www.chess.com"]

[Event "Titled Tuesday Blitz October 25 Late 2022"]
[White "Vovk, Orest"]
[Black "Sargsyan, Anna M."]
[WhiteFideId "14113490"]
[BlackFideId "13308130"]
[WhiteElo "2215"]
[BlackElo "2284"]
[Result "0-1"]
[Round "11"]
[TimeControl "180+1"]
[Date "2022.10.26"]
[WhiteClock "0:00:02"]
[BlackClock "0:00:14"]

1. h4 {[%clk 0:02:59]}  e5 {[%clk 0:02:55]} 2. h5 {[%clk 0:02:58]}  Nc6 {[%clk 0:02:55]} 3. Nf3 {[%clk 0:02:53]}  e4 {[%clk 0:02:54]} 4. Nh4 {[%clk 0:02:50]}  d5 {[%clk 0:02:52]} 5. g3 {[%clk 0:02:40]}  h6 {[%clk 0:02:50]} 6. d3 {[%clk 0:02:40]}  exd3 {[%clk 0:02:46]} 7. cxd3 {[%clk 0:02:39]}  Nf6 {[%clk 0:02:46]} 8. Ng2 {[%clk 0:02:35]}  Bd6 {[%clk 0:02:42]} 9. Nc3 {[%clk 0:02:29]}  d4 {[%clk 0:02:39]} 10. Nb1 {[%clk 0:02:24]}  Qe7 {[%clk 0:02:36]} 11. Bf4 {[%clk 0:02:22]}  Ne5 {[%clk 0:02:33]} 12. Bxe5 {[%clk 0:02:08]}  Qxe5 {[%clk 0:02:34]} 13. Nd2 {[%clk 0:02:05]}  Bg4 {[%clk 0:02:31]} 14. Qa4+ {[%clk 0:01:58]}  b5 {[%clk 0:02:22]} 15. Qc2 {[%clk 0:01:53]}  O-O {[%clk 0:02:19]} 16. Nf4 {[%clk 0:01:52]}  Nxh5 {[%clk 0:02:11]} 17. Nxh5 {[%clk 0:01:45]}  Bxh5 {[%clk 0:02:12]} 18. f4 {[%clk 0:01:32]}  Qd5 {[%clk 0:02:03]} 19. Ne4 {[%clk 0:01:31]}  Bg6 {[%clk 0:01:40]} 20. Bg2 {[%clk 0:01:31]}  Bb4+ {[%clk 0:01:35]} 21. Kf2 {[%clk 0:01:30]}  Qe6 {[%clk 0:01:27]} 22. Qb3 {[%clk 0:01:17]}  Qe7 {[%clk 0:01:19]} 23. g4 {[%clk 0:01:03]}  Bxe4 {[%clk 0:01:07]} 24. Bxe4 {[%clk 0:01:02]}  Rad8 {[%clk 0:01:04]} 25. g5 {[%clk 0:00:55]}  Qd6 {[%clk 0:00:54]} 26. Kf3 {[%clk 0:00:41]}  Bd2 {[%clk 0:00:54]} 27. Rh4 {[%clk 0:00:36]}  h5 {[%clk 0:00:39]} 28. g6 {[%clk 0:00:30]}  Qf6 {[%clk 0:00:37]} 29. Rah1 {[%clk 0:00:23]}  c5 {[%clk 0:00:27]} 30. Qc2 {[%clk 0:00:15]}  Be3 {[%clk 0:00:22]} 31. Qxc5 {[%clk 0:00:06]}  fxg6 {[%clk 0:00:20]} 32. Kg2 {[%clk 0:00:04]}  Bxf4 {[%clk 0:00:15]} 33. Bd5+ {[%clk 0:00:03]}  Kh7 {[%clk 0:00:14]} 34. R4h3 {[%clk 0:00:02]}  Qg5+ {[%clk 0:00:14]} 0-1


[Site "https://www.chess.com"]

[Event "Titled Tuesday Blitz October 25 Late 2022"]
[White "Winterberg, Lukas"]
[Black "Maksimovic, Bojan"]
[WhiteFideId "24622702"]
[BlackFideId "14408120"]
[WhiteElo "2349"]
[BlackElo "2447"]
[Result "1-0"]
[Round "11"]
[TimeControl "180+1"]
[Date "2022.10.26"]
[WhiteClock "0:00:12"]
[BlackClock "0:00:11"]

1. d4 {[%clk 0:03:00]}  Nf6 {[%clk 0:02:59]} 2. c4 {[%clk 0:03:01]}  g6 {[%clk 0:03:00]} 3. Nc3 {[%clk 0:03:01]}  Bg7 {[%clk 0:03:00]} 4. e4 {[%clk 0:03:01]}  d6 {[%clk 0:03:01]} 5. Be2 {[%clk 0:03:01]}  Nbd7 {[%clk 0:03:02]} 6. h3 {[%clk 0:02:58]}  e5 {[%clk 0:03:01]} 7. d5 {[%clk 0:02:58]}  Nc5 {[%clk 0:03:01]} 8. Qc2 {[%clk 0:02:57]}  O-O {[%clk 0:03:00]} 9. Be3 {[%clk 0:02:57]}  b6 {[%clk 0:02:59]} 10. g4 {[%clk 0:02:56]}  Kh8 {[%clk 0:02:39]} 11. Nf3 {[%clk 0:02:55]}  Ng8 {[%clk 0:02:36]} 12. O-O-O {[%clk 0:02:45]}  a5 {[%clk 0:02:36]} 13. h4 {[%clk 0:02:41]}  Bxg4 {[%clk 0:02:35]} 14. Ng5 {[%clk 0:02:38]}  Bxe2 {[%clk 0:02:10]} 15. Qxe2 {[%clk 0:02:39]}  f6 {[%clk 0:02:11]} 16. Nh3 {[%clk 0:01:55]}  Bh6 {[%clk 0:02:10]} 17. Kb1 {[%clk 0:01:54]}  Qd7 {[%clk 0:02:07]} 18. f4 {[%clk 0:01:53]}  exf4 {[%clk 0:02:05]} 19. Nxf4 {[%clk 0:01:49]}  Rae8 {[%clk 0:02:06]} 20. Qf3 {[%clk 0:01:48]}  Qe7 {[%clk 0:02:04]} 21. Bxc5 {[%clk 0:01:48]}  Bxf4 {[%clk 0:01:56]} 22. Bxb6 {[%clk 0:01:41]}  Be5 {[%clk 0:01:44]} 23. Bxa5 {[%clk 0:01:31]}  Ra8 {[%clk 0:01:29]} 24. Bb4 {[%clk 0:01:31]}  Rfb8 {[%clk 0:01:29]} 25. a3 {[%clk 0:01:31]}  Nh6 {[%clk 0:01:18]} 26. Nb5 {[%clk 0:01:29]}  Nf7 {[%clk 0:01:18]} 27. Rc1 {[%clk 0:01:21]}  Qd7 {[%clk 0:01:16]} 28. Bc3 {[%clk 0:01:18]}  Kg7 {[%clk 0:01:15]} 29. h5 {[%clk 0:01:17]}  Ng5 {[%clk 0:01:09]} 30. Qd3 {[%clk 0:01:11]}  Re8 {[%clk 0:01:06]} 31. Rcf1 {[%clk 0:01:09]}  Nf7 {[%clk 0:01:00]} 32. Qf3 {[%clk 0:00:55]}  Ng5 {[%clk 0:00:59]} 33. Qg2 {[%clk 0:00:53]}  Bxc3 {[%clk 0:00:47]} 34. Nxc3 {[%clk 0:00:53]}  Qe7 {[%clk 0:00:43]} 35. Rf4 {[%clk 0:00:46]}  Qe5 {[%clk 0:00:23]} 36. Rhf1 {[%clk 0:00:44]}  Rab8 {[%clk 0:00:22]} 37. Ka2 {[%clk 0:00:40]}  Rf8 {[%clk 0:00:21]} 38. hxg6 {[%clk 0:00:37]}  hxg6 {[%clk 0:00:21]} 39. Qg4 {[%clk 0:00:38]}  Qd4 {[%clk 0:00:19]} 40. Qe2 {[%clk 0:00:34]}  Rh8 {[%clk 0:00:18]} 41. Nb5 {[%clk 0:00:34]}  Qe5 {[%clk 0:00:18]} 42. Qd3 {[%clk 0:00:31]}  Rh2 {[%clk 0:00:17]} 43. R4f2 {[%clk 0:00:31]}  Rxf2 {[%clk 0:00:16]} 44. Rxf2 {[%clk 0:00:32]}  Qxe4 {[%clk 0:00:16]} 45. Qc3 {[%clk 0:00:29]}  Qe5 {[%clk 0:00:14]} 46. Qxe5 {[%clk 0:00:26]}  dxe5 {[%clk 0:00:12]} 47. Nxc7 {[%clk 0:00:27]}  Ne4 {[%clk 0:00:12]} 48. Re2 {[%clk 0:00:25]}  Nc5 {[%clk 0:00:13]} 49. b4 {[%clk 0:00:24]}  Nd3 {[%clk 0:00:13]} 50. Rd2 {[%clk 0:00:21]}  e4 {[%clk 0:00:14]} 51. d6 {[%clk 0:00:19]}  f5 {[%clk 0:00:10]} 52. c5 {[%clk 0:00:19]}  Kf7 {[%clk 0:00:10]} 53. c6 {[%clk 0:00:18]}  Ne5 {[%clk 0:00:09]} 54. Na6 {[%clk 0:00:17]}  Ra8 {[%clk 0:00:09]} 55. b5 {[%clk 0:00:16]}  e3 {[%clk 0:00:09]} 56. Re2 {[%clk 0:00:13]}  f4 {[%clk 0:00:09]} 57. c7 {[%clk 0:00:11]}  Ke6 {[%clk 0:00:09]} 58. Nb8 {[%clk 0:00:10]}  Nc4 {[%clk 0:00:05]} 59. c8=Q+ {[%clk 0:00:10]}  Kd5 {[%clk 0:00:06]} 60. Qc6+ {[%clk 0:00:10]}  Kd4 {[%clk 0:00:06]} 61. Rc2 {[%clk 0:00:09]}  Rxa3+ {[%clk 0:00:06]} 62. Kb1 {[%clk 0:00:08]}  Nd2+ {[%clk 0:00:06]} 63. Kb2 {[%clk 0:00:07]}  Rb3+ {[%clk 0:00:05]} 64. Ka2 {[%clk 0:00:08]}  Kd3 {[%clk 0:00:01]} 65. d7 {[%clk 0:00:07]}  Rb4 {[%clk 0:00:01]} 66. d8=Q+ {[%clk 0:00:07]}  Rd4 {[%clk 0:00:02]} 67. Qxd4+ {[%clk 0:00:07]}  Kxd4 {[%clk 0:00:03]} 68. Qc3+ {[%clk 0:00:07]}  Ke4 {[%clk 0:00:03]} 69. Rxd2 {[%clk 0:00:07]}  exd2 {[%clk 0:00:04]} 70. Qxd2 {[%clk 0:00:08]}  g5 {[%clk 0:00:05]} 71. Nc6 {[%clk 0:00:08]}  g4 {[%clk 0:00:06]} 72. Nd4 {[%clk 0:00:09]}  g3 {[%clk 0:00:07]} 73. Ne2 {[%clk 0:00:09]}  Kf3 {[%clk 0:00:06]} 74. Qxf4+ {[%clk 0:00:08]}  Kxe2 {[%clk 0:00:07]} 75. Qxg3 {[%clk 0:00:08]}  Kf1 {[%clk 0:00:08]} 76. Qc3 {[%clk 0:00:08]}  Ke2 {[%clk 0:00:08]} 77. b6 {[%clk 0:00:09]}  Kf1 {[%clk 0:00:09]} 78. b7 {[%clk 0:00:10]}  Kg1 {[%clk 0:00:10]} 79. b8=Q {[%clk 0:00:11]}  Kh1 {[%clk 0:00:10]} 80. Qb1+ {[%clk 0:00:10]}  Kg2 {[%clk 0:00:10]} 81. Qbb2+ {[%clk 0:00:11]}  Kf1 {[%clk 0:00:11]} 82. Qcc1# {[%clk 0:00:12]} 1-0


[Site "https://www.chess.com"]

[Event "Titled Tuesday Blitz October 25 Late 2022"]
[White "Zhigalko, Sergei"]
[Black "Stoyanov, Tsvetan"]
[WhiteFideId "13502956"]
[BlackFideId "2917173"]
[WhiteElo "2662"]
[BlackElo "2349"]
[Result "1-0"]
[Round "11"]
[TimeControl "180+1"]
[Date "2022.10.26"]
[WhiteClock "0:00:04"]
[BlackClock "0:00:08"]

1. e4 {[%clk 0:03:00]}  c5 {[%clk 0:03:00]} 2. Nf3 {[%clk 0:03:00]}  d6 {[%clk 0:03:00]} 3. d4 {[%clk 0:03:00]}  cxd4 {[%clk 0:03:01]} 4. Qxd4 {[%clk 0:03:01]}  Nc6 {[%clk 0:02:58]} 5. Bb5 {[%clk 0:03:01]}  Bd7 {[%clk 0:02:57]} 6. Bxc6 {[%clk 0:03:01]}  Bxc6 {[%clk 0:02:58]} 7. Nc3 {[%clk 0:03:02]}  e5 {[%clk 0:02:55]} 8. Qd3 {[%clk 0:03:02]}  h6 {[%clk 0:02:54]} 9. Nd2 {[%clk 0:03:02]}  Nf6 {[%clk 0:02:52]} 10. Nc4 {[%clk 0:03:03]}  Rc8 {[%clk 0:02:34]} 11. O-O {[%clk 0:02:36]}  Be7 {[%clk 0:02:15]} 12. Ne3 {[%clk 0:02:35]}  O-O {[%clk 0:02:10]} 13. Nf5 {[%clk 0:02:36]}  Bd7 {[%clk 0:01:33]} 14. Nxd6 {[%clk 0:02:31]}  Bxd6 {[%clk 0:01:26]} 15. Qxd6 {[%clk 0:02:32]}  Qa5 {[%clk 0:01:26]} 16. Be3 {[%clk 0:01:01]}  Rfd8 {[%clk 0:01:21]} 17. Qe7 {[%clk 0:00:16]}  Re8 {[%clk 0:00:30]} 18. Qd6 {[%clk 0:00:16]}  Red8 {[%clk 0:00:30]} 19. f4 {[%clk 0:00:17]}  exf4 {[%clk 0:00:16]} 20. Qxf4 {[%clk 0:00:16]}  Be6 {[%clk 0:00:15]} 21. a3 {[%clk 0:00:14]}  Re8 {[%clk 0:00:14]} 22. Rad1 {[%clk 0:00:11]}  Bc4 {[%clk 0:00:12]} 23. Rf2 {[%clk 0:00:10]}  Qh5 {[%clk 0:00:11]} 24. Rd4 {[%clk 0:00:05]}  Ng4 {[%clk 0:00:07]} 25. Rf3 {[%clk 0:00:04]}  Ne5 {[%clk 0:00:06]} 26. Rg3 {[%clk 0:00:03]}  Ng6 {[%clk 0:00:06]} 27. Qf5 {[%clk 0:00:04]}  Qxf5 {[%clk 0:00:05]} 28. exf5 {[%clk 0:00:04]}  Ne7 {[%clk 0:00:06]} 29. Rf4 {[%clk 0:00:03]}  f6 {[%clk 0:00:05]} 30. Bxa7 {[%clk 0:00:03]}  Rc6 {[%clk 0:00:04]} 31. Bd4 {[%clk 0:00:03]}  Kf7 {[%clk 0:00:04]} 32. h3 {[%clk 0:00:03]}  Rd8 {[%clk 0:00:04]} 33. Kh2 {[%clk 0:00:03]}  Bd5 {[%clk 0:00:04]} 34. Re3 {[%clk 0:00:02]}  Nc8 {[%clk 0:00:04]} 35. g4 {[%clk 0:00:03]}  Bc4 {[%clk 0:00:05]} 36. Ree4 {[%clk 0:00:03]}  Nd6 {[%clk 0:00:05]} 37. Re3 {[%clk 0:00:03]}  b5 {[%clk 0:00:05]} 38. b3 {[%clk 0:00:03]}  Rdc8 {[%clk 0:00:03]} 39. bxc4 {[%clk 0:00:03]}  Rxc4 {[%clk 0:00:04]} 40. Kg3 {[%clk 0:00:03]}  b4 {[%clk 0:00:05]} 41. axb4 {[%clk 0:00:03]}  Rxb4 {[%clk 0:00:06]} 42. Nd5 {[%clk 0:00:04]}  Rbc4 {[%clk 0:00:06]} 43. c3 {[%clk 0:00:04]}  Nb5 {[%clk 0:00:05]} 44. Re7+ {[%clk 0:00:04]}  Kf8 {[%clk 0:00:05]} 45. Ree4 {[%clk 0:00:04]}  Nd6 {[%clk 0:00:05]} 46. Re6 {[%clk 0:00:05]}  Nb5 {[%clk 0:00:06]} 47. h4 {[%clk 0:00:04]}  Ra4 {[%clk 0:00:04]} 48. Re2 {[%clk 0:00:04]}  Rcc4 {[%clk 0:00:04]} 49. Ne3 {[%clk 0:00:04]}  Rc8 {[%clk 0:00:04]} 50. Bc5+ {[%clk 0:00:04]}  Rxc5 {[%clk 0:00:04]} 51. Rxa4 {[%clk 0:00:05]}  Nxc3 {[%clk 0:00:04]} 52. Ra8+ {[%clk 0:00:06]}  Kf7 {[%clk 0:00:05]} 53. Ra7+ {[%clk 0:00:06]}  Kf8 {[%clk 0:00:05]} 54. Rc2 {[%clk 0:00:06]}  Rc4 {[%clk 0:00:04]} 55. Rxc3 {[%clk 0:00:06]}  Rxc3 {[%clk 0:00:04]} 56. Kf3 {[%clk 0:00:07]}  Rc8 {[%clk 0:00:04]} 57. Rd7 {[%clk 0:00:06]}  Re8 {[%clk 0:00:04]} 58. Rd4 {[%clk 0:00:07]}  Re7 {[%clk 0:00:05]} 59. Nd5 {[%clk 0:00:07]}  Rd7 {[%clk 0:00:05]} 60. Nf4 {[%clk 0:00:07]}  Ra7 {[%clk 0:00:03]} 61. Rd8+ {[%clk 0:00:06]}  Ke7 {[%clk 0:00:03]} 62. Rd3 {[%clk 0:00:07]}  Kf7 {[%clk 0:00:04]} 63. Rc3 {[%clk 0:00:06]}  Rb7 {[%clk 0:00:04]} 64. Nd5 {[%clk 0:00:07]}  Ke8 {[%clk 0:00:04]} 65. Rc8+ {[%clk 0:00:05]}  Kd7 {[%clk 0:00:05]} 66. Rg8 {[%clk 0:00:05]}  Kd6 {[%clk 0:00:05]} 67. Ne3 {[%clk 0:00:04]}  Rb3 {[%clk 0:00:06]} 68. Rxg7 {[%clk 0:00:04]}  Ke5 {[%clk 0:00:06]} 69. Rf7 {[%clk 0:00:05]}  Kd4 {[%clk 0:00:07]} 70. Re7 {[%clk 0:00:05]}  Rd3 {[%clk 0:00:07]} 71. Re4+ {[%clk 0:00:05]}  Kc5 {[%clk 0:00:08]} 72. Re6 {[%clk 0:00:05]}  Kd4 {[%clk 0:00:08]} 73. Ke2 {[%clk 0:00:04]}  Ra3 {[%clk 0:00:08]} 74. Nc2+ {[%clk 0:00:04]} 1-0